[Event "Late-Titled-Tuesday-Blitz-March-12-2024"]
[Site "Chess.com"]
[Date "2024.03.12"]
[Round "8"]
[White "GaiozNigalidze"]
[Black "bazar-wokzal"]
[Result "1/2-1/2"]
[WhiteElo "2711"]
[BlackElo "2572"]
[TimeControl "180+1"]
[EndTime "15:28:22 PDT"]
[Termination "Game drawn - insufficient material"]

1. d4 {[%clk 0:03:00.9]} 1... Nf6 {[%clk 0:02:59.4]} 2. c4 {[%clk 0:03:01.3]}
2... Nc6 {[%clk 0:02:58.8]} 3. d5 {[%clk 0:03:00.7]} 3... Ne5 {[%clk 0:02:58.7]}
4. e3 {[%clk 0:03:00.5]} 4... e6 {[%clk 0:02:58.7]} 5. dxe6 {[%clk 0:02:59.3]}
5... fxe6 {[%clk 0:02:58.6]} 6. Nc3 {[%clk 0:02:59.4]} 6... Bc5 {[%clk
0:02:57.4]} 7. Nf3 {[%clk 0:02:58.8]} 7... Nxf3+ {[%clk 0:02:55.6]} 8. gxf3
{[%clk 0:02:59.1]} 8... d5 {[%clk 0:02:49.6]} 9. cxd5 {[%clk 0:02:58.9]} 9...
exd5 {[%clk 0:02:49.2]} 10. Be2 {[%clk 0:02:58.6]} 10... Bh3 {[%clk 0:02:46]}
11. Rg1 {[%clk 0:02:57.7]} 11... Qd7 {[%clk 0:02:44.5]} 12. Nb5 {[%clk
0:02:48.5]} 12... O-O-O {[%clk 0:02:38.2]} 13. a3 {[%clk 0:02:40.5]} 13... a6
{[%clk 0:02:38]} 14. Nd4 {[%clk 0:02:38]} 14... Rhe8 {[%clk 0:02:23.3]} 15. b4
{[%clk 0:02:30.2]} 15... Bb6 {[%clk 0:02:20]} 16. Bb2 {[%clk 0:02:28.1]} 16...
Kb8 {[%clk 0:02:19.6]} 17. Qd3 {[%clk 0:02:21.9]} 17... c5 {[%clk 0:02:11.6]}
18. bxc5 {[%clk 0:02:20.4]} 18... Bxc5 {[%clk 0:02:11.9]} 19. Rg5 {[%clk
0:02:11.1]} 19... Bb6 {[%clk 0:02:07.9]} 20. Bc3 {[%clk 0:02:06.2]} 20... Rc8
{[%clk 0:02:05.4]} 21. Rb1 {[%clk 0:01:45.2]} 21... Ka7 {[%clk 0:02:05.1]} 22.
Bd2 {[%clk 0:01:30.8]} 22... g6 {[%clk 0:01:52]} 23. Rg3 {[%clk 0:01:23.2]}
23... Rc7 {[%clk 0:01:33.4]} 24. Rxb6 {[%clk 0:01:09.2]} 24... Kxb6 {[%clk
0:01:33]} 25. Nb3 {[%clk 0:01:09.5]} 25... Rc4 {[%clk 0:01:16.5]} 26. Na5 {[%clk
0:00:50.7]} 26... Rec8 {[%clk 0:00:50.3]} 27. Qb3+ {[%clk 0:00:43.7]} 27... Ka7
{[%clk 0:00:49.1]} 28. Rxh3 {[%clk 0:00:24.6]} 28... b6 {[%clk 0:00:31.3]} 29.
Rg3 {[%clk 0:00:09.7]} 29... bxa5 {[%clk 0:00:29]} 30. Bxc4 {[%clk 0:00:10]}
30... dxc4 {[%clk 0:00:28.2]} 31. Qc3 {[%clk 0:00:09]} 31... Nd5 {[%clk
0:00:26]} 32. Qd4+ {[%clk 0:00:08.6]} 32... Nb6 {[%clk 0:00:26]} 33. Bc3 {[%clk
0:00:06.9]} 33... Qxd4 {[%clk 0:00:23.6]} 34. Bxd4 {[%clk 0:00:07.4]} 34... c3
{[%clk 0:00:23.2]} 35. Kd1 {[%clk 0:00:06.7]} 35... c2+ {[%clk 0:00:22.8]} 36.
Kc1 {[%clk 0:00:07]} 36... Kb7 {[%clk 0:00:23.3]} 37. Bxb6 {[%clk 0:00:04.5]}
37... Kxb6 {[%clk 0:00:23.8]} 38. Rg4 {[%clk 0:00:04.8]} 38... Rc3 {[%clk
0:00:20.1]} 39. a4 {[%clk 0:00:04.5]} 39... Kc5 {[%clk 0:00:19.4]} 40. Rd4
{[%clk 0:00:03.3]} 40... g5 {[%clk 0:00:18.5]} 41. Rd7 {[%clk 0:00:03.4]} 41...
Kb4 {[%clk 0:00:18.3]} 42. Rxh7 {[%clk 0:00:03]} 42... Kxa4 {[%clk 0:00:17.8]}
43. Rg7 {[%clk 0:00:02.9]} 43... Rc5 {[%clk 0:00:17.1]} 44. Rb7 {[%clk
0:00:01.8]} 44... Ka3 {[%clk 0:00:17]} 45. Rb2 {[%clk 0:00:01.8]} 45... a4
{[%clk 0:00:12.8]} 46. Rxc2 {[%clk 0:00:02.4]} 46... Rf5 {[%clk 0:00:11.5]} 47.
Rc3+ {[%clk 0:00:02.7]} 47... Kb4 {[%clk 0:00:11.8]} 48. Rc6 {[%clk 0:00:02.4]}
48... Rxf3 {[%clk 0:00:11.8]} 49. Rc2 {[%clk 0:00:01.8]} 49... a3 {[%clk
0:00:11.6]} 50. Kb1 {[%clk 0:00:02.2]} 50... Kb3 {[%clk 0:00:12]} 51. Rd2 {[%clk
0:00:02.8]} 51... a5 {[%clk 0:00:11.4]} 52. Rd3+ {[%clk 0:00:03.3]} 52... Kb4
{[%clk 0:00:11.5]} 53. Rd2 {[%clk 0:00:04.2]} 53... Kb3 {[%clk 0:00:11.5]} 54.
Rd3+ {[%clk 0:00:04.3]} 54... Kb4 {[%clk 0:00:11.9]} 55. Rd4+ {[%clk 0:00:04.5]}
55... Kc3 {[%clk 0:00:11.2]} 56. Ra4 {[%clk 0:00:04.6]} 56... Kb3 {[%clk
0:00:10.8]} 57. Rxa5 {[%clk 0:00:04.9]} 57... Rxf2 {[%clk 0:00:11.1]} 58. Rb5+
{[%clk 0:00:05.4]} 58... Ka4 {[%clk 0:00:11.3]} 59. Rxg5 {[%clk 0:00:04.9]}
59... Rxh2 {[%clk 0:00:11.1]} 60. Rc5 {[%clk 0:00:04.5]} 60... Rh1+ {[%clk
0:00:10.2]} 61. Ka2 {[%clk 0:00:05]} 61... Rh2+ {[%clk 0:00:09.8]} 62. Kb1
{[%clk 0:00:05.4]} 62... Kb4 {[%clk 0:00:09]} 63. Rc8 {[%clk 0:00:05.1]} 63...
Rh1+ {[%clk 0:00:07.9]} 64. Ka2 {[%clk 0:00:05.2]} 64... Rh2+ {[%clk 0:00:08.3]}
65. Kb1 {[%clk 0:00:05.4]} 65... Re2 {[%clk 0:00:08.2]} 66. Rb8+ {[%clk
0:00:04.3]} 66... Kc4 {[%clk 0:00:08.7]} 67. Rc8+ {[%clk 0:00:04.4]} 67... Kd3
{[%clk 0:00:09.2]} 68. Ra8 {[%clk 0:00:03.7]} 68... a2+ {[%clk 0:00:08]} 69.
Rxa2 {[%clk 0:00:02.4]} 69... Re1+ {[%clk 0:00:08.4]} 70. Kb2 {[%clk 0:00:02.6]}
70... Re2+ {[%clk 0:00:08.9]} 71. Kb1 {[%clk 0:00:02.6]} 71... Rxa2 {[%clk
0:00:09.8]} 72. Kxa2 {[%clk 0:00:02.8]} 72... Kxe3 {[%clk 0:00:10.7]} 1/2-1/2

[Event "Late-Titled-Tuesday-Blitz-March-12-2024"]
[Site "Chess.com"]
[Date "2024.03.12"]
[Round "8"]
[White "Msb2"]
[Black "Bauman_Guy"]
[Result "1/2-1/2"]
[WhiteElo "3026"]
[BlackElo "2925"]
[TimeControl "180+1"]
[EndTime "15:28:23 PDT"]
[Termination "Game drawn - insufficient material"]

1. d4 {[%clk 0:03:00.9]} 1... Nf6 {[%clk 0:02:59.9]} 2. c4 {[%clk 0:03:01.6]}
2... e6 {[%clk 0:03:00.3]} 3. Nc3 {[%clk 0:03:02.2]} 3... Bb4 {[%clk 0:03:00.9]}
4. e3 {[%clk 0:03:02.2]} 4... O-O {[%clk 0:03:01.2]} 5. Bd2 {[%clk 0:03:02.9]}
5... b6 {[%clk 0:02:58.1]} 6. Nf3 {[%clk 0:03:03.2]} 6... Bb7 {[%clk 0:02:58.2]}
7. Bd3 {[%clk 0:03:03.9]} 7... d6 {[%clk 0:02:58.3]} 8. O-O {[%clk 0:03:04.1]}
8... Nbd7 {[%clk 0:02:58.6]} 9. a3 {[%clk 0:03:04.8]} 9... Bxc3 {[%clk
0:02:58.4]} 10. Bxc3 {[%clk 0:03:05.7]} 10... a5 {[%clk 0:02:58.8]} 11. b4
{[%clk 0:03:01.6]} 11... Ne4 {[%clk 0:02:57.3]} 12. Bb2 {[%clk 0:03:01.9]} 12...
f5 {[%clk 0:02:56.3]} 13. Nd2 {[%clk 0:02:58.6]} 13... Qh4 {[%clk 0:02:52.9]}
14. f3 {[%clk 0:02:53.9]} 14... Nxd2 {[%clk 0:02:49.8]} 15. Qxd2 {[%clk
0:02:54.8]} 15... e5 {[%clk 0:02:45.7]} 16. d5 {[%clk 0:02:51.1]} 16... f4
{[%clk 0:02:38.1]} 17. exf4 {[%clk 0:02:46.7]} 17... Qxf4 {[%clk 0:02:36.9]} 18.
Qxf4 {[%clk 0:02:46.2]} 18... Rxf4 {[%clk 0:02:37.1]} 19. g3 {[%clk 0:02:38.9]}
19... Rf7 {[%clk 0:02:35.6]} 20. Bc3 {[%clk 0:02:28.3]} 20... axb4 {[%clk
0:02:08.5]} 21. axb4 {[%clk 0:02:29.2]} 21... Rxa1 {[%clk 0:02:08.6]} 22. Bxa1
{[%clk 0:02:30.1]} 22... Rf8 {[%clk 0:02:08.5]} 23. Bb2 {[%clk 0:02:25.9]} 23...
Ra8 {[%clk 0:02:08]} 24. Ra1 {[%clk 0:02:14.2]} 24... Rxa1+ {[%clk 0:02:05.7]}
25. Bxa1 {[%clk 0:02:15.1]} 25... b5 {[%clk 0:02:02.2]} 26. cxb5 {[%clk
0:01:49.9]} 26... Bxd5 {[%clk 0:02:00]} 27. Kf2 {[%clk 0:01:50.5]} 27... Kf7
{[%clk 0:01:56.9]} 28. Ke3 {[%clk 0:01:50.1]} 28... g6 {[%clk 0:01:51.4]} 29. f4
{[%clk 0:01:50.2]} 29... Ke6 {[%clk 0:01:48.9]} 30. g4 {[%clk 0:01:24.3]} 30...
exf4+ {[%clk 0:01:33.5]} 31. Kxf4 {[%clk 0:01:25.2]} 31... Ne5 {[%clk
0:01:34.2]} 32. Bc2 {[%clk 0:01:16.4]} 32... h6 {[%clk 0:01:20.5]} 33. g5 {[%clk
0:01:03.6]} 33... hxg5+ {[%clk 0:00:38.7]} 34. Kxg5 {[%clk 0:01:04.5]} 34...
Nf3+ {[%clk 0:00:39]} 35. Kxg6 {[%clk 0:01:05]} 35... Nxh2 {[%clk 0:00:39.6]}
36. Bf6 {[%clk 0:01:05.5]} 36... Bc4 {[%clk 0:00:37.5]} 37. Bf5+ {[%clk
0:01:05.7]} 37... Kd5 {[%clk 0:00:37.7]} 38. Bd7 {[%clk 0:01:06.6]} 38... Nf3
{[%clk 0:00:15.9]} 39. Bc6+ {[%clk 0:01:06.3]} 39... Ke6 {[%clk 0:00:16.3]} 40.
Bxf3 {[%clk 0:01:06]} 40... Bxb5 {[%clk 0:00:16.2]} 41. Bc3 {[%clk 0:00:39.7]}
41... c5 {[%clk 0:00:15.9]} 42. Kg5 {[%clk 0:00:39.8]} 42... cxb4 {[%clk
0:00:15.3]} 43. Bxb4 {[%clk 0:00:40.7]} 43... Kd7 {[%clk 0:00:15.8]} 44. Kf4
{[%clk 0:00:39]} 44... Bc6 {[%clk 0:00:16.1]} 45. Bg4+ {[%clk 0:00:39.5]} 45...
Kc7 {[%clk 0:00:16.4]} 46. Ke3 {[%clk 0:00:40.1]} 46... Kb7 {[%clk 0:00:16.7]}
47. Kd4 {[%clk 0:00:40.2]} 47... Ka8 {[%clk 0:00:17.1]} 48. Bd2 {[%clk
0:00:38.4]} 48... Bb7 {[%clk 0:00:17.2]} 49. Kc3 {[%clk 0:00:38.9]} 49... Bc6
{[%clk 0:00:17.4]} 50. Kb4 {[%clk 0:00:39.6]} 50... Bb7 {[%clk 0:00:18]} 51. Ka5
{[%clk 0:00:40.2]} 51... Bc6 {[%clk 0:00:18.6]} 52. Kb6 {[%clk 0:00:40.8]} 52...
Bb7 {[%clk 0:00:19.3]} 53. Bd7 {[%clk 0:00:41.1]} 53... Bh1 {[%clk 0:00:19.7]}
54. Bc8 {[%clk 0:00:41.5]} 54... Bg2 {[%clk 0:00:20.1]} 55. Bf4 {[%clk
0:00:41.6]} 55... Bh1 {[%clk 0:00:20.3]} 56. Bg5 {[%clk 0:00:42.1]} 56... Bg2
{[%clk 0:00:20.8]} 57. Bg4 {[%clk 0:00:42.1]} 57... Bh1 {[%clk 0:00:21.1]} 58.
Bh3 {[%clk 0:00:42.7]} 58... Bb7 {[%clk 0:00:21.3]} 59. Bf1 {[%clk 0:00:42]}
59... Bh1 {[%clk 0:00:19.5]} 60. Bd8 {[%clk 0:00:41.5]} 60... Bf3 {[%clk
0:00:19.8]} 61. Ba6 {[%clk 0:00:41.6]} 61... Bh1 {[%clk 0:00:20.2]} 62. Bc7
{[%clk 0:00:41.7]} 62... Bf3 {[%clk 0:00:20.8]} 63. Bb5 {[%clk 0:00:42.3]} 63...
Bh1 {[%clk 0:00:21.3]} 64. Bd8 {[%clk 0:00:42.7]} 64... Bf3 {[%clk 0:00:21.8]}
65. Bd7 {[%clk 0:00:43]} 65... Bh1 {[%clk 0:00:22.1]} 66. Bg4 {[%clk 0:00:43.5]}
66... Bg2 {[%clk 0:00:22.6]} 67. Be7 {[%clk 0:00:43.8]} 67... Bh1 {[%clk
0:00:23.1]} 68. Bh3 {[%clk 0:00:44.5]} 68... Bf3 {[%clk 0:00:23.7]} 69. Bf1
{[%clk 0:00:45]} 69... Bh1 {[%clk 0:00:24.2]} 70. Be2 {[%clk 0:00:44.9]} 70...
Bg2 {[%clk 0:00:24.5]} 71. Kb5 {[%clk 0:00:44.9]} 71... Bh1 {[%clk 0:00:24.7]}
72. Kc4 {[%clk 0:00:45.4]} 72... Bg2 {[%clk 0:00:25.1]} 73. Kd4 {[%clk
0:00:46.1]} 73... Bh1 {[%clk 0:00:25.7]} 74. Ke3 {[%clk 0:00:46.6]} 74... Bb7
{[%clk 0:00:24.8]} 75. Kf2 {[%clk 0:00:47.3]} 75... Bc6 {[%clk 0:00:25.3]} 76.
Bh4 {[%clk 0:00:48]} 76... Bb7 {[%clk 0:00:25.9]} 77. Bg3 {[%clk 0:00:48.9]}
77... Bc6 {[%clk 0:00:26.2]} 78. Bd3 {[%clk 0:00:48.8]} 78... Bb7 {[%clk
0:00:26.8]} 79. Bb5 {[%clk 0:00:49.6]} 79... Bd5 {[%clk 0:00:27]} 80. Ke3 {[%clk
0:00:50]} 80... Bb7 {[%clk 0:00:27.6]} 81. Bxd6 {[%clk 0:00:50.6]} 81... Bh1
{[%clk 0:00:27.9]} 82. Kf2 {[%clk 0:00:51.2]} 82... Bb7 {[%clk 0:00:28.5]} 83.
Bd3 {[%clk 0:00:51.7]} 83... Bc6 {[%clk 0:00:28.8]} 84. Kg1 {[%clk 0:00:52.4]}
84... Bb7 {[%clk 0:00:29.3]} 85. Bh2 {[%clk 0:00:53]} 85... Bc6 {[%clk
0:00:29.9]} 86. Bf1 {[%clk 0:00:53.9]} 86... Bb7 {[%clk 0:00:30.4]} 87. Kf2
{[%clk 0:00:54.6]} 87... Bc6 {[%clk 0:00:30.9]} 88. Ke3 {[%clk 0:00:55.5]} 88...
Bb7 {[%clk 0:00:31.5]} 89. Kd4 {[%clk 0:00:56.4]} 89... Bc6 {[%clk 0:00:32.1]}
90. Kc5 {[%clk 0:00:57.3]} 90... Bh1 {[%clk 0:00:32.2]} 91. Kb6 {[%clk
0:00:58.2]} 91... Bf3 {[%clk 0:00:32.7]} 92. Bh3 {[%clk 0:00:58.7]} 92... Bh1
{[%clk 0:00:32.8]} 93. Bg4 {[%clk 0:00:58.4]} 93... Be4 {[%clk 0:00:32.4]} 94.
Be6 {[%clk 0:00:57.7]} 94... Bh1 {[%clk 0:00:32.9]} 95. Bd6 {[%clk 0:00:58.1]}
95... Bg2 {[%clk 0:00:32.9]} 96. Bd7 {[%clk 0:00:58.4]} 96... Bh1 {[%clk
0:00:33.1]} 97. Kc7 {[%clk 0:00:59]} 97... Bg2 {[%clk 0:00:33.2]} 98. Be6 {[%clk
0:00:59.7]} 98... Bh1 {[%clk 0:00:33.5]} 99. Bh3 {[%clk 0:01:00.4]} 99... Bf3
{[%clk 0:00:33.7]} 100. Bc5 {[%clk 0:01:01.1]} 100... Bh1 {[%clk 0:00:33.9]}
101. Bf5 {[%clk 0:01:01.7]} 101... Bg2 {[%clk 0:00:34.1]} 102. Kd6 {[%clk
0:01:02.4]} 102... Bh1 {[%clk 0:00:34.4]} 103. Ke5 {[%clk 0:01:03.3]} 103... Bg2
{[%clk 0:00:34.7]} 104. Be3 {[%clk 0:01:04.2]} 104... Bh1 {[%clk 0:00:35.1]}
105. Bf2 {[%clk 0:01:05.1]} 105... Bb7 {[%clk 0:00:35.5]} 106. Bg1 {[%clk
0:01:06]} 106... Bc6 {[%clk 0:00:35.9]} 107. Kd6 {[%clk 0:01:06.4]} 107... Bb7
{[%clk 0:00:36.6]} 108. Bd7 {[%clk 0:01:06.8]} 108... Bh1 {[%clk 0:00:37.1]}
109. Kc7 {[%clk 0:01:07.4]} 109... Bg2 {[%clk 0:00:37.5]} 110. Bb5 {[%clk
0:01:07.9]} 110... Bh1 {[%clk 0:00:37.8]} 111. Bf1 {[%clk 0:01:08.8]} 111... Bf3
{[%clk 0:00:38.2]} 112. Bh3 {[%clk 0:01:08]} 112... Bh1 {[%clk 0:00:38.7]} 113.
Bd7 {[%clk 0:01:08.2]} 113... Bg2 {[%clk 0:00:38.8]} 114. Bc6+ {[%clk
0:01:08.4]} 114... Bxc6 {[%clk 0:00:38.8]} 1/2-1/2

[Event "Late-Titled-Tuesday-Blitz-March-12-2024"]
[Site "Chess.com"]
[Date "2024.03.12"]
[Round "8"]
[White "dropstoneDP"]
[Black "BabageldiAnnaberdiyev"]
[Result "1-0"]
[WhiteElo "2974"]
[BlackElo "2660"]
[TimeControl "180+1"]
[EndTime "15:28:43 PDT"]
[Termination "dropstoneDP won by resignation"]

1. e4 {[%clk 0:02:58.6]} 1... e6 {[%clk 0:03:00.3]} 2. d4 {[%clk 0:02:58.4]}
2... d5 {[%clk 0:03:00.9]} 3. Nc3 {[%clk 0:02:57.6]} 3... Nf6 {[%clk 0:03:00.1]}
4. e5 {[%clk 0:02:55.5]} 4... Nfd7 {[%clk 0:03:00]} 5. f4 {[%clk 0:02:55.1]}
5... c5 {[%clk 0:02:59.2]} 6. Nf3 {[%clk 0:02:55.6]} 6... Nc6 {[%clk 0:02:59.8]}
7. Be3 {[%clk 0:02:55.7]} 7... a6 {[%clk 0:03:00.4]} 8. a3 {[%clk 0:02:48.6]}
8... b5 {[%clk 0:03:00.1]} 9. Bd3 {[%clk 0:02:36.1]} 9... Qb6 {[%clk 0:02:59]}
10. Bf2 {[%clk 0:02:32.9]} 10... cxd4 {[%clk 0:02:57.4]} 11. Ne2 {[%clk
0:02:32.9]} 11... Bb7 {[%clk 0:02:54.5]} 12. O-O {[%clk 0:02:29.4]} 12... g6
{[%clk 0:02:52.2]} 13. Nexd4 {[%clk 0:02:28.1]} 13... Nxd4 {[%clk 0:02:51.8]}
14. Bxd4 {[%clk 0:02:27.6]} 14... Bc5 {[%clk 0:02:51.5]} 15. c3 {[%clk
0:02:26.8]} 15... h5 {[%clk 0:02:49.3]} 16. Qe1 {[%clk 0:02:23.3]} 16... Rc8
{[%clk 0:01:55.4]} 17. Kh1 {[%clk 0:02:15.2]} 17... h4 {[%clk 0:01:49.1]} 18. h3
{[%clk 0:02:12.3]} 18... Bxd4 {[%clk 0:01:38.7]} 19. cxd4 {[%clk 0:02:11.6]}
19... Qd8 {[%clk 0:01:38.2]} 20. a4 {[%clk 0:02:06]} 20... Bc6 {[%clk
0:01:35.1]} 21. b3 {[%clk 0:02:02.2]} 21... Kf8 {[%clk 0:01:34.2]} 22. axb5
{[%clk 0:01:57.4]} 22... Bxb5 {[%clk 0:01:33.5]} 23. Bxb5 {[%clk 0:01:57.8]}
23... axb5 {[%clk 0:01:34.4]} 24. Qb4+ {[%clk 0:01:57.9]} 24... Kg7 {[%clk
0:01:35]} 25. Qxb5 {[%clk 0:01:57.8]} 25... Rb8 {[%clk 0:01:35.2]} 26. Qd3
{[%clk 0:01:57.3]} 26... Qb6 {[%clk 0:01:33]} 27. Rfc1 {[%clk 0:01:38.5]} 27...
Qxb3 {[%clk 0:01:27.2]} 28. Qxb3 {[%clk 0:01:38.2]} 28... Rxb3 {[%clk
0:01:28.1]} 29. Ra7 {[%clk 0:01:35.4]} 29... Rxf3 {[%clk 0:01:08.3]} 30. gxf3
{[%clk 0:01:34.6]} 30... Nb6 {[%clk 0:01:06.7]} 31. Rcc7 {[%clk 0:01:29.1]}
31... Rf8 {[%clk 0:01:06.7]} 32. Kg2 {[%clk 0:01:26.1]} 32... Nc4 {[%clk
0:01:06.5]} 33. Kf2 {[%clk 0:01:26.2]} 33... Kg8 {[%clk 0:01:01.7]} 34. Ke2
{[%clk 0:01:25.8]} 34... Nb6 {[%clk 0:00:59.7]} 35. Kd3 {[%clk 0:01:25.2]} 35...
Nc4 {[%clk 0:00:57.9]} 36. Rcb7 {[%clk 0:01:21.3]} 36... Kg7 {[%clk 0:00:55.5]}
37. Rc7 {[%clk 0:01:19.5]} 37... Kg8 {[%clk 0:00:55.4]} 38. Re7 {[%clk
0:01:19.5]} 38... Nb6 {[%clk 0:00:53.8]} 39. f5 {[%clk 0:01:14.4]} 39... gxf5
{[%clk 0:00:51.7]} 40. Rab7 {[%clk 0:01:05.1]} 40... Nc4 {[%clk 0:00:51.3]} 41.
Ke2 {[%clk 0:01:05.5]} 41... Na5 {[%clk 0:00:49.4]} 42. Rbc7 {[%clk 0:01:03.1]}
42... f4 {[%clk 0:00:42]} 43. Rc1 {[%clk 0:00:57.9]} 43... Rb8 {[%clk
0:00:32.3]} 44. Rcc7 {[%clk 0:00:57]} 44... Rf8 {[%clk 0:00:30.5]} 45. Red7
{[%clk 0:00:53.9]} 45... Nc4 {[%clk 0:00:28.8]} 46. Ra7 {[%clk 0:00:53.6]} 46...
Ne3 {[%clk 0:00:26.7]} 47. Rdb7 {[%clk 0:00:51]} 47... Nf5 {[%clk 0:00:27.1]}
48. Kd3 {[%clk 0:00:51.2]} 48... Ng3 {[%clk 0:00:27.1]} 49. Kd2 {[%clk
0:00:44.6]} 49... Kg7 {[%clk 0:00:27.2]} 50. Kd3 {[%clk 0:00:42.2]} 50... Kg8
{[%clk 0:00:27.7]} 51. Re7 {[%clk 0:00:41.1]} 51... Nf5 {[%clk 0:00:26.7]} 52.
Red7 {[%clk 0:00:41.4]} 52... Ng3 {[%clk 0:00:27.2]} 53. Rdb7 {[%clk 0:00:39.1]}
53... Kg7 {[%clk 0:00:26.2]} 54. Ra6 {[%clk 0:00:39.1]} 54... Kg8 {[%clk
0:00:25.1]} 55. Rab6 {[%clk 0:00:39.2]} 55... Nf5 {[%clk 0:00:24.7]} 56. Rb8
{[%clk 0:00:39.1]} 56... Rxb8 {[%clk 0:00:21]} 57. Rxb8+ {[%clk 0:00:40]} 57...
Kg7 {[%clk 0:00:21.5]} 58. Ra8 {[%clk 0:00:39.8]} 58... Ng3 {[%clk 0:00:21.4]}
59. Rc8 {[%clk 0:00:38.7]} 59... Nf5 {[%clk 0:00:21.9]} 60. Rc1 {[%clk
0:00:38.6]} 60... Ng3 {[%clk 0:00:22.2]} 61. Rb1 {[%clk 0:00:36.9]} 61... Nf5
{[%clk 0:00:20.4]} 62. Kc3 {[%clk 0:00:37.2]} 62... Ng3 {[%clk 0:00:20.9]} 63.
Kb4 {[%clk 0:00:34.8]} 63... Kg8 {[%clk 0:00:20.8]} 64. Kc5 {[%clk 0:00:34.8]}
64... Kg7 {[%clk 0:00:21.5]} 65. Ra1 {[%clk 0:00:31.3]} 65... Kf8 {[%clk
0:00:21.8]} 66. Ra4 {[%clk 0:00:28.5]} 66... Kg7 {[%clk 0:00:22]} 67. Kd6 {[%clk
0:00:27.9]} 67... Nf5+ {[%clk 0:00:21]} 68. Kd7 {[%clk 0:00:28.3]} 68... Ng3
{[%clk 0:00:21.9]} 69. Ke8 {[%clk 0:00:27.7]} 69... Nf5 {[%clk 0:00:22.3]} 70.
Ra7 {[%clk 0:00:26.7]} 70... Nxd4 {[%clk 0:00:21]} 71. Rxf7+ {[%clk 0:00:26.3]}
71... Kg6 {[%clk 0:00:21.5]} 72. Rxf4 {[%clk 0:00:25.7]} 72... Nf5 {[%clk
0:00:20.2]} 73. Rg4+ {[%clk 0:00:22.2]} 73... Kh5 {[%clk 0:00:19.2]} 74. Kf7
{[%clk 0:00:18.9]} 74... d4 {[%clk 0:00:19.6]} 75. Kxe6 {[%clk 0:00:15.3]} 1-0

[Event "Late-Titled-Tuesday-Blitz-March-12-2024"]
[Site "Chess.com"]
[Date "2024.03.12"]
[Round "9"]
[White "TigrVShlyape"]
[Black "Zavgorodniy_Sergiy"]
[Result "1-0"]
[WhiteElo "2889"]
[BlackElo "2610"]
[TimeControl "180+1"]
[EndTime "15:37:49 PDT"]
[Termination "TigrVShlyape won by resignation"]

1. d4 {[%clk 0:03:00.9]} 1... d5 {[%clk 0:02:55.1]} 2. Bf4 {[%clk 0:03:00.4]}
2... Nf6 {[%clk 0:02:54.8]} 3. e3 {[%clk 0:03:00.6]} 3... e6 {[%clk 0:02:54.7]}
4. Nf3 {[%clk 0:03:01]} 4... c5 {[%clk 0:02:53.6]} 5. c3 {[%clk 0:02:59.6]} 5...
Bd6 {[%clk 0:02:53.3]} 6. Bb5+ {[%clk 0:02:59.5]} 6... Nc6 {[%clk 0:02:51.2]} 7.
Bg3 {[%clk 0:02:59.3]} 7... cxd4 {[%clk 0:02:43]} 8. exd4 {[%clk 0:02:58.1]}
8... Bxg3 {[%clk 0:02:37.3]} 9. hxg3 {[%clk 0:02:57.6]} 9... Bd7 {[%clk
0:02:37.7]} 10. Bd3 {[%clk 0:02:54.8]} 10... O-O {[%clk 0:02:35.4]} 11. g4
{[%clk 0:02:49.6]} 11... Ne4 {[%clk 0:02:34.3]} 12. g5 {[%clk 0:02:42.9]} 12...
f5 {[%clk 0:02:30.9]} 13. gxf6 {[%clk 0:02:41.9]} 13... Qxf6 {[%clk 0:02:30.5]}
14. Nbd2 {[%clk 0:02:40.8]} 14... e5 {[%clk 0:02:25.1]} 15. Nxe4 {[%clk
0:02:39.8]} 15... dxe4 {[%clk 0:02:25.1]} 16. Bxe4 {[%clk 0:02:37]} 16... h6
{[%clk 0:02:20.1]} 17. dxe5 {[%clk 0:02:33.2]} 17... Nxe5 {[%clk 0:02:18]} 18.
Qd5+ {[%clk 0:02:33.2]} 18... Nf7 {[%clk 0:02:08.8]} 19. Qxd7 {[%clk 0:02:29.1]}
19... Rae8 {[%clk 0:02:08.8]} 20. Qd5 {[%clk 0:02:26]} 20... Re5 {[%clk
0:01:57.7]} 21. Nxe5 {[%clk 0:02:24.6]} 1-0

[Event "Late-Titled-Tuesday-Blitz-March-12-2024"]
[Site "Chess.com"]
[Date "2024.03.12"]
[Round "9"]
[White "kingofthenil"]
[Black "Lion-Al-Messi"]
[Result "1-0"]
[WhiteElo "2772"]
[BlackElo "2599"]
[TimeControl "180+1"]
[EndTime "15:38:11 PDT"]
[Termination "kingofthenil won by resignation"]

1. Nf3 {[%clk 0:03:00.9]} 1... Nf6 {[%clk 0:02:59.2]} 2. g3 {[%clk 0:02:59.7]}
2... b6 {[%clk 0:02:59]} 3. Bg2 {[%clk 0:02:59.4]} 3... Bb7 {[%clk 0:02:59.4]}
4. d3 {[%clk 0:02:59]} 4... e6 {[%clk 0:02:58.3]} 5. e4 {[%clk 0:02:59.4]} 5...
Be7 {[%clk 0:02:58.2]} 6. O-O {[%clk 0:02:59.5]} 6... d5 {[%clk 0:02:58.1]} 7.
e5 {[%clk 0:02:59.7]} 7... Nfd7 {[%clk 0:02:58.2]} 8. Re1 {[%clk 0:02:59.6]}
8... c5 {[%clk 0:02:58.3]} 9. c3 {[%clk 0:02:58.3]} 9... Nc6 {[%clk 0:02:58.4]}
10. d4 {[%clk 0:02:58.9]} 10... Qc7 {[%clk 0:02:56.9]} 11. a4 {[%clk 0:02:57.3]}
11... Na5 {[%clk 0:02:52.5]} 12. Na3 {[%clk 0:02:57.2]} 12... c4 {[%clk
0:02:50.9]} 13. Nb5 {[%clk 0:02:56.9]} 13... Qc6 {[%clk 0:02:50.1]} 14. Bg5
{[%clk 0:02:57.3]} 14... f6 {[%clk 0:02:46.9]} 15. exf6 {[%clk 0:02:56.9]} 15...
gxf6 {[%clk 0:02:47.8]} 16. Bf4 {[%clk 0:02:56.6]} 16... O-O {[%clk 0:02:23.5]}
17. Nc7 {[%clk 0:02:51.2]} 17... e5 {[%clk 0:02:22]} 18. dxe5 {[%clk 0:02:51.6]}
18... Qxc7 {[%clk 0:02:20.5]} 19. e6 {[%clk 0:02:50.7]} 19... Ne5 {[%clk
0:02:17]} 20. Nxe5 {[%clk 0:02:49.4]} 20... fxe5 {[%clk 0:02:09.4]} 21. Qg4+
{[%clk 0:02:48.1]} 21... Kh8 {[%clk 0:02:00.4]} 22. Bxe5+ {[%clk 0:02:48]} 22...
Qxe5 {[%clk 0:01:59.5]} 23. Rxe5 {[%clk 0:02:48.9]} 23... Rf6 {[%clk 0:01:53.4]}
24. Bxd5 {[%clk 0:02:48.4]} 24... Raf8 {[%clk 0:01:49.4]} 25. Bxb7 {[%clk
0:02:45.6]} 25... Nxb7 {[%clk 0:01:50.3]} 26. f4 {[%clk 0:02:45]} 26... Nd6
{[%clk 0:01:49.2]} 27. Rd1 {[%clk 0:02:44.5]} 27... Nf5 {[%clk 0:01:48.5]} 28.
Rd7 {[%clk 0:02:42.8]} 28... Rg6 {[%clk 0:01:39.8]} 29. Qxf5 {[%clk 0:02:33]}
1-0